bitfinex/quotes_SOLUSD_20230116
["timestamp","ask_amount","ask_price","bid_price","bid_amount"]
[1673882091449,6.22916443,22.381,22.296,4.19468]
[1673882091766,4.09253,22.379,22.296,4.19468]
[1673882091959,4.84985488,22.378,22.296,4.19468]
[1673882092171,8.52699023,22.377,22.296,4.19468]
[1673882092384,4.09253,22.375,22.296,4.19468]
[1673882092707,4.09253,22.375,22.297,68.87794011]
[1673882092920,4.09253,22.375,22.298,24.19431]
[1673882093111,4.09253,22.375,22.299,10.0748487]
[1673882093322,4.09253,22.375,22.301,6.35041441]
[1673882093543,4.09253,22.375,22.302,4.19355]
[1673882093744,4.09253,22.375,22.303,5.9009078]
[1673882093953,4.09253,22.375,22.303,150.56196354]
[1673882094190,4.09253,22.375,22.304,69.57568667]
[1673882094492,4.09253,22.375,22.306,20.0]
[1673882094914,33.55,22.374,22.306,20.0]
[1673882095143,4.09253,22.372,22.307,5.95032073]
[1673882095447,4.09253,22.372,22.303,6.31946944]
[1673882095635,20.0,22.371,22.303,6.31946944]
[1673882095845,4.09253,22.369,22.309,5.7593107]
[1673882096272,4.09253,22.369,22.304,52.39388427]
[1673882096273,4.09253,22.369,22.31,51.85203053]
[1673882096493,4.09253,22.369,22.312,20.0]
[1673882096704,0.00053,22.369,22.314,6.38756414]
[1673882096894,27.63528339,22.408,22.316,5.55349661]
[1673882097107,33.5,22.407,22.317,20.0]
[1673882097312,20.0,22.408,22.318,21.21557313]
[1673882097534,20.0,22.408,22.319,20.0]
[1673882097734,20.0,22.408,22.32,25.99066208]
[1673882097950,20.0,22.408,22.321,22.31024095]
[1673882098170,20.0,22.408,22.322,20.0]
[1673882098384,20.0,22.408,22.323,8.73749337]
[1673882098385,4.09253,22.407,22.323,8.73749337]
[1673882098597,4.09253,22.407,22.325,7.24743876]
[1673882098906,7.73935523,22.405,22.327,4.20222534]
[1673882099222,33.5,22.406,22.328,4.18867]
[1673882099438,312.0,22.479,22.328,4.18867]
[1673882099439,5.67329305,22.415,22.33,20.0]
[1673882099638,20.0,22.435,22.33,20.0]
[1673882099639,4.09253,22.414,22.331,4.18811]
[1673882099865,4.09253,22.414,22.331,78.91634979]
[1673882100192,39.94037865,22.434,22.331,78.91634979]
[1673882100193,20.0,22.435,22.333,7.3256145]
[1673882100382,37.55253,22.434,22.335,133.28736]
[1673882100600,129.1,22.452,22.334,37.0]
[1673882100601,4.09253,22.433,22.338,7.74391107]
[1673882100902,4.09253,22.433,22.34,133.28642]
[1673882101117,568.96144253,22.436,22.342,133.28605]
[1673882101306,568.96144253,22.436,22.345,4.02620906]
[1673882101515,3.59253,22.435,22.349,7.32956943]
[1673882101734,568.96144253,22.436,22.362,74.00001488]
[1673882101941,568.96144253,22.436,22.35,20.0]
[1673882101942,557.96144253,22.436,22.365,74.80859978]
[1673882102156,525.68037829,22.436,22.385,74.48990622]
[1673882102362,493.5221189,22.436,22.399,74.52913876]
[1673882102574,361.53172413,22.436,22.407,5.63784748]
[1673882102791,334.80397562,22.436,22.408,149.1]
[1673882103097,20.0,22.488,22.44,27.76389271]
[1673882103318,4.09253,22.486,22.441,40.0]
[1673882103844,4.09253,22.486,22.442,56.19990021]
[1673882104075,1.4570352,22.486,22.443,5.83538824]
[1673882104396,1.4570352,22.486,22.445,20.0]
[1673882104583,1.4570352,22.486,22.446,24.56713911]
[1673882104911,1.4570352,22.486,22.447,21.33940077]
[1673882105106,1.4570352,22.486,22.449,6.33856019]
[1673882105317,1.4570352,22.486,22.452,20.0]
[1673882105648,1.4570352,22.486,22.454,7.02033966]
[1673882105858,1.4570352,22.486,22.455,17.0]
[1673882106068,33.32,22.527,22.457,4.95982965]
[1673882106274,31.862964,22.527,22.459,5.12142929]
[1673882106490,20.0,22.528,22.461,20.0]
[1673882106684,20.0,22.528,22.463,4.1635]
[1673882106903,21.46196354,22.533,22.463,8.23764274]
[1673882107127,21.46196354,22.533,22.465,4.21028921]
[1673882107444,21.46196354,22.533,22.467,4.16276]
[1673882107643,21.46196354,22.533,22.468,20.0]
[1673882107968,21.46196354,22.533,22.47,4.1622]
[1673882108181,20.0,22.54,22.47,4.1622]
[1673882108363,21.46196354,22.539,22.472,20.0]
[1673882108575,21.46196354,22.539,22.474,4.16146]
[1673882108785,54.76196354,22.539,22.475,21.97775762]
[1673882109008,54.76196354,22.539,22.475,63.93786601]
[1673882109223,33.29,22.544,22.477,4.1609]
[1673882109440,42.92392708,22.546,22.481,74.0194136]
[1673882109753,33.28,22.554,22.485,74.63558394]
[1673882109964,33.26,22.566,22.487,78.94103494]
[1673882110177,33.26,22.566,22.489,78.29674134]
[1673882110374,33.24,22.579,22.492,7.48452433]
[1673882110583,33.26,22.565,22.496,74.06512526]
[1673882110908,4.63777522,22.578,22.498,84.9943462]
[1673882110909,33.24,22.578,22.498,84.9943462]
[1673882111125,33.27,22.564,22.5,79.13317273]
[1673882111311,20.0,22.544,22.502,4.15628]
[1673882111530,53.29,22.544,22.502,4.15628]
[1673882111744,53.29,22.544,22.502,0.00628]
[1673882111745,50.08371023,22.543,22.502,0.00628]
[1673882111957,50.08371023,22.543,22.447,70.78980224]
[1673882111958,15.83336,22.471,22.453,4.38731172]
[1673882112274,15.83336,22.471,22.41,20.0]
[1673882112275,4.15628,22.485,22.462,4.16368]
[1673882112496,50.38,22.484,22.462,4.16368]
[1673882112678,33.38,22.484,22.454,93.67863174]
[1673882112890,33.38,22.484,22.411,4.00397331]
[1673882113104,17.0,22.483,22.442,4.16739]
[1673882113318,33.39,22.483,22.442,4.16739]
[1673882113531,7.80122352,22.537,22.442,4.16739]
[1673882113532,6.07002377,22.535,22.442,9.38072659]
[1673882113728,9.22119362,22.533,22.443,30.55961806]
[1673882113951,7.78867062,22.531,22.445,4.16684]
[1673882114152,4.09253,22.531,22.445,4.16684]
[1673882114362,20.0,22.529,22.447,4.86209017]
[1673882114684,20.0,22.529,22.449,4.16609]
[1673882114891,33.32,22.528,22.449,8.31286723]
[1673882115225,20.0,22.537,22.452,20.0]
[1673882115433,4.09253,22.536,22.454,9.62132155]
[1673882115635,20.0,22.537,22.456,4.16479]
[1673882115840,33.31,22.536,22.456,4.16479]
[1673882116053,33.31,22.536,22.457,71.44357218]
[1673882116260,20.0,22.535,22.46,20.0]
[1673882116483,20.0,22.535,22.462,4.16368]
[1673882116691,33.31,22.534,22.462,4.16368]
[1673882116899,4.09253,22.533,22.463,42.42885678]
[1673882117115,4.09253,22.533,22.464,10.92931255]
[1673882117323,33.31,22.532,22.466,9.26148208]
[1673882117642,32.81,22.532,22.468,4.16257]
[1673882117953,5.27604361,22.562,22.468,4.16257]
[1673882117954,33.31,22.536,22.468,4.16257]
[1673882118176,319.87462696,22.578,22.47,129.1]
[1673882118177,33.28,22.553,22.47,129.1]
[1673882118376,33.28,22.553,22.472,4.16183]
[1673882118696,33.29,22.544,22.473,21.48896581]
[1673882118884,33.29,22.544,22.475,4.16127]
[1673882119093,33.29,22.544,22.476,23.39989365]
[1673882119313,33.29,22.544,22.479,6.1610396]
[1673882119538,33.27,22.562,22.481,4.16016]
[1673882119733,33.28,22.553,22.481,11.97719936]
[1673882119941,33.27,22.561,22.482,53.48816058]
[1673882120157,33.29,22.544,22.484,4.15961]
[1673882120475,33.27,22.56,22.485,37.0]
[1673882120691,33.3,22.543,22.487,4.15905]
[1673882120910,33.29,22.544,22.488,17.0]
[1673882121087,33.3,22.542,22.489,4.15868]
[1673882121305,20.0,22.541,22.491,20.0]
[1673882121512,53.3,22.541,22.492,4.15813]
[1673882121735,20.0,22.541,22.492,4.15813]
[1673882121933,33.3,22.54,22.492,4.15813]
[1673882122144,33.3,22.54,22.493,31.73037564]
[1673882122358,44.09253,22.539,22.458,53.42]
[1673882122578,10.52107267,22.538,22.472,4.16183]
[1673882122896,24.09253,22.537,22.472,4.16183]
[1673882123105,4.09253,22.536,22.473,26.46702231]
[1673882123297,20.0,22.535,22.474,24.16146]
[1673882123504,17.0,22.534,22.475,4.16127]
[1673882123735,50.31,22.534,22.475,33.83495897]
[1673882123963,4.09253,22.533,22.476,26.70305897]
[1673882124133,20.0,22.532,22.477,4.1609]
[1673882124343,53.31,22.532,22.477,4.1609]
[1673882124568,33.31,22.532,22.478,67.05655289]
[1673882124887,33.27,22.563,22.479,78.11171089]
[1673882125106,33.29,22.544,22.481,4.16016]
[1673882125295,20.0,22.577,22.481,4.16016]
[1673882125296,33.27,22.562,22.482,37.0]
[1673882125502,33.3,22.543,22.484,4.15961]
[1673882125730,33.27,22.561,22.487,203.88198494]
[1673882125921,33.27,22.563,22.499,203.98986554]
[1673882126133,20.0,22.575,22.507,203.14079762]
[1673882126348,57.67309799,22.545,22.509,129.1]
[1673882126667,33.25,22.574,22.545,63.31117815]
[1673882126877,20.0,22.575,22.512,20.0]
[1673882126878,33.25,22.575,22.548,51.61765139]
[1673882127087,53.25,22.577,22.546,108.21756554]
[1673882127291,33.24,22.579,22.547,48.94726121]
[1673882127495,53.22,22.593,22.549,38.12213433]
[1673882127725,53.22,22.593,22.55,4.14743]
[1673882127940,53.22,22.593,22.551,17.0]
[1673882128254,50.949749,22.593,22.553,20.0]
[1673882128449,53.19,22.613,22.554,41.1467]
[1673882128654,53.19,22.613,22.556,4.14633]
[1673882128871,53.19,22.613,22.557,17.0]
[1673882129075,52.69,22.613,22.559,20.0]
[1673882129287,52.69,22.613,22.56,21.1456]
[1673882129508,52.69,22.613,22.561,4.14541]
[1673882129717,4.34199641,22.612,22.56,40.82955767]
[1673882129937,4.09253,22.611,22.56,40.82955767]
[1673882130142,4.09253,22.611,22.553,20.0]
[1673882130143,20.0,22.61,22.561,4.14541]
[1673882130354,20.0,22.61,22.561,33.09987143]
[1673882130570,33.2,22.609,22.562,6.81895803]
[1673882130758,33.2,22.609,22.563,9.09784011]
[1673882130969,33.2,22.609,22.564,21.14486]
[1673882131190,33.2,22.609,22.565,24.14468]
[1673882131400,20.0,22.61,22.566,41.14449]
[1673882131606,33.2,22.608,22.567,24.14431]
[1673882131921,33.19,22.612,22.568,28.24807348]
[1673882132127,33.2,22.607,22.569,4.14394]
[1673882132340,33.2,22.611,22.57,20.0]
[1673882132648,33.19,22.612,22.571,12.08263618]
[1673882132864,33.2,22.61,22.572,4.14339]
[1673882133073,33.19,22.615,22.574,7.35504511]
[1673882133302,33.17,22.63,22.576,4.14266]
[1673882133492,20.0,22.631,22.576,4.14266]
[1673882133493,33.18,22.623,22.576,10.22199542]
[1673882133701,33.18,22.623,22.578,7.11940849]
[1673882133911,33.18,22.623,22.579,21.14211]
[1673882134119,20.0,22.622,22.58,4.14192]
[1673882134345,24.09253,22.622,22.567,5.53733862]
[1673882134544,33.18,22.621,22.574,5.0374662]
[1673882134874,33.18,22.621,22.575,39.71873367]
[1673882135081,20.0,22.62,22.575,39.71873367]
[1673882135301,17.0,22.619,22.575,4.14284]
[1673882135506,50.18,22.619,22.575,4.14284]
[1673882135695,24.09253,22.618,22.567,35.57589367]
[1673882135905,24.09253,22.618,22.568,4.14413]
[1673882136114,20.0,22.616,22.568,4.14413]
[1673882136321,33.19,22.617,22.569,29.04814676]
[1673882136532,33.18,22.619,22.57,11.12818653]
[1673882136749,33.18,22.619,22.571,4.14358]
[1673882137064,109.2921,22.672,22.573,20.0]
[1673882137065,33.18,22.623,22.573,20.0]
[1673882137270,33.17,22.629,22.575,7.61426591]
[1673882137478,33.18,22.622,22.577,6.55268697]
[1673882137689,33.17,22.628,22.578,4.14229]
[1673882137919,33.17,22.63,22.578,35.2701421]
[1673882138126,33.17,22.627,22.58,7.03055568]
[1673882138443,53.17,22.629,22.581,4.14174]
[1673882138755,0.06829668,22.624,22.582,6.31087427]
[1673882138971,0.06829668,22.624,22.583,10.23874667]
[1673882139174,0.06829668,22.624,22.585,4.26704513]
[1673882139386,0.06829668,22.624,22.584,44.14119]
[1673882139387,0.06829668,22.624,22.586,4.14082]
[1673882139699,33.18,22.623,22.585,28.03372678]
[1673882139908,33.18,22.623,22.587,4.14064]
[1673882140120,33.18,22.623,22.559,7.78598]
[1673882140121,24.09253,22.622,22.559,7.78598]
[1673882140330,24.09253,22.622,22.558,20.0]
[1673882140331,17.0,22.621,22.565,5.44918108]
[1673882140550,19.0,22.62,22.566,4.14449]
[1673882140748,17.0,22.619,22.566,4.14449]
[1673882140958,20.0,22.617,22.564,28.03372678]
[1673882141153,21.09253,22.616,22.565,28.65772678]
[1673882141367,4.09253,22.615,22.555,38.22043167]
[1673882141596,4.09253,22.615,22.556,9.47123109]
[1673882141912,33.19,22.614,22.557,10.17353977]
[1673882142097,33.17,22.629,22.559,4.14578]
[1673882142309,402.0,22.666,22.559,8.14901931]
[1673882142310,53.17,22.631,22.559,8.14901931]
[1673882142541,53.17,22.631,22.561,6.66712471]
[1673882142542,33.17,22.628,22.561,6.66712471]
[1673882142758,33.17,22.63,22.563,7.03859192]
[1673882142955,20.0,22.631,22.565,24.14468]
[1673882143169,20.0,22.631,22.567,10.59484074]
[1673882143364,20.0,22.631,22.569,10.99954598]
[1673882143695,33.15,22.641,22.571,7.09582399]
[1673882143900,33.15,22.641,22.573,9.8025003]
[1673882144099,33.15,22.643,22.575,9.7514994]
[1673882144310,33.15,22.643,22.577,9.4593113]
[1673882144531,33.15,22.643,22.579,11.32838409]
[1673882144743,33.15,22.643,22.581,11.99780009]
[1673882144957,110.1186,22.644,22.584,20.0]
[1673882145165,33.15,22.642,22.585,25.27710846]
[1673882145484,5.95353797,22.65,22.587,20.0]
[1673882145704,33.13,22.658,22.589,6.7879493]
[1673882145886,20.0,22.657,22.591,20.0]
[1673882146098,20.0,22.657,22.594,20.0]
[1673882146307,20.0,22.657,22.596,135.44071066]
[1673882146525,20.0,22.657,22.597,10.82218653]
[1673882146741,20.0,22.657,22.599,5.86432066]
[1673882147063,20.0,22.657,22.602,4.98919263]
[1673882147483,20.0,22.657,22.603,46.89648057]
[1673882147671,0.0060771,22.632,22.604,4.13753]
[1673882147882,20.0,22.669,22.633,5.66119977]
[1673882148095,20.0,22.669,22.634,4.13204]
[1673882148426,33.11,22.668,22.606,44.54138677]
[1673882148642,33.11,22.668,22.607,10.57654889]
[1673882148870,36.20253,22.668,22.608,4.13679]
[1673882149045,5.67451355,22.666,22.608,4.13679]
[1673882149252,4.09253,22.665,22.608,4.13679]
[1673882149466,37.21253,22.665,22.609,28.00324611]
[1673882149681,37.0,22.664,22.61,5.36994511]
[1673882149892,27.35299412,22.663,22.611,4.13624]
[1673882150221,4.2254047,22.661,22.611,4.13624]
[1673882150403,4.09253,22.66,22.579,20.0]
[1673882150622,4.44025355,22.658,22.585,4.14101]
[1673882150824,5.23557228,22.656,22.585,4.14101]
[1673882151037,5.64185331,22.654,22.585,4.14101]
[1673882151257,4.09253,22.652,22.585,4.14101]
[1673882151469,4.81243282,22.651,22.554,20.0]
[1673882151663,9.53418559,22.649,22.555,4.14651]
[1673882151879,129.1,22.65,22.555,4.14651]
[1673882151880,9.16185133,22.647,22.555,4.14651]
[1673882152090,4.94963886,22.644,22.542,26.19765436]
[1673882152294,4.09253,22.634,22.542,26.19765436]
[1673882152503,7.63879803,22.631,22.541,25.82854601]
[1673882152716,4.09253,22.629,22.541,25.82854601]
[1673882152925,20.0,22.628,22.542,16.66923437]
[1673882153159,20.0,22.628,22.541,20.0]
[1673882153160,11.34020316,22.626,22.541,20.0]
[1673882153345,10.22401242,22.624,22.541,20.0]
[1673882153556,9.83249035,22.622,22.54,4.20953088]
[1673882153782,4.09253,22.62,22.54,4.20953088]
[1673882153980,4.11970168,22.618,22.54,4.20953088]
[1673882154198,9.26509925,22.616,22.54,4.20953088]
[1673882154405,10.6125712,22.614,22.54,4.20953088]
[1673882154726,6.79371673,22.611,22.54,4.20953088]
[1673882155044,4.78923723,22.608,22.515,4.94834389]
[1673882155253,9.2592145,22.606,22.515,4.94834389]
[1673882155457,4.09253,22.604,22.516,4.1537]
[1673882155787,20.0,22.602,22.516,4.1537]
[1673882156005,4.09253,22.6,22.516,4.1537]
[1673882156304,4.09253,22.6,22.555,10.0]
[1673882156534,33.21,22.599,22.555,10.0]
[1673882156727,4.09253,22.598,22.556,20.0]
[1673882156930,4.09253,22.598,22.557,7.39234016]
[1673882157335,4.09253,22.598,22.558,17.0]
[1673882157761,4.09253,22.598,22.559,20.0]
[1673882157977,4.09253,22.598,22.56,22.31792927]
[1673882158187,4.09253,22.598,22.561,20.0]
[1673882158404,4.09253,22.598,22.562,17.0]
[1673882158829,4.09253,22.598,22.563,20.0]
[1673882159031,4.09253,22.598,22.564,23.3667233]
[1673882159357,4.09253,22.598,22.565,4.18077062]
[1673882159549,4.09253,22.598,22.566,17.0]
[1673882159758,4.09253,22.598,22.567,20.0]
[1673882159968,20.0,22.615,22.568,17.0]
[1673882160174,37.28253,22.614,22.567,20.0]
[1673882160387,4.09253,22.613,22.567,20.0]
[1673882160605,4.09253,22.613,22.568,5.10721184]
[1673882161038,33.25359107,22.613,22.568,4.45550376]
[1673882161353,4.09253,22.613,22.568,4.45550376]
[1673882161759,30.23428743,22.612,22.568,4.45550376]
[1673882161960,4.09253,22.611,22.568,4.45550376]
[1673882162174,4.09253,22.611,22.569,1.381]
[1673882162607,4.09253,22.611,22.57,6.95679695]
[1673882162811,4.09253,22.611,22.572,20.0]
[1673882163014,4.09253,22.611,22.573,24.7513119]
[1673882163855,4.09253,22.611,22.575,5.36903484]
[1673882164104,4.09253,22.611,22.576,17.0]
[1673882164304,0.90258803,22.61,22.576,17.0]
[1673882164487,4.09253,22.609,22.576,17.0]
[1673882164691,4.09253,22.609,22.577,19.5]
[1673882164918,4.09253,22.609,22.578,23.66689143]
[1673882165136,4.09253,22.609,22.579,129.1]
[1673882165451,0.00511803,22.61,22.582,6.50540547]
[1673882165647,4.09253,22.644,22.584,129.1]
[1673882165852,4.09253,22.644,22.587,6.28564253]
[1673882165853,24.09253,22.644,22.587,6.28564253]
[1673882166076,24.09253,22.644,22.588,20.0]
[1673882166394,24.09253,22.644,22.589,17.0]
[1673882166604,4.09253,22.644,22.591,7.20151985]
[1673882166812,4.09253,22.644,22.593,6.20070988]
[1673882167004,4.09253,22.644,22.595,7.23085855]
[1673882167444,4.09253,22.644,22.592,20.0]
[1673882167653,33.15,22.643,22.592,20.0]
[1673882167972,24.09253,22.642,22.586,6.02807843]
[1673882168280,4.09253,22.641,22.575,5.67530743]
[1673882168496,174.05060143,22.641,22.578,11.03111794]
[1673882168704,20.0,22.639,22.561,20.0]
[1673882168924,21.09253,22.638,22.578,7.10574601]
[1673882169227,44.25253,22.638,22.578,7.10574601]
[1673882169414,44.25253,22.638,22.58,5.80006157]
[1673882169628,20.0,22.636,22.581,4.14174]
[1673882169862,20.0,22.635,22.581,4.14174]
[1673882170052,53.16,22.635,22.581,4.14174]
[1673882170694,20.0,22.634,22.581,4.14174]
[1673882171004,20.0,22.636,22.581,4.14174]
[1673882171216,20.0,22.639,22.581,4.14174]
[1673882171422,33.14,22.65,22.583,129.1]
[1673882171635,20.0,22.657,22.585,20.0]
[1673882171854,33.15,22.645,22.587,4.14064]
[1673882172066,33.14,22.65,22.588,22.23678331]
[1673882172391,33.13,22.655,22.59,129.1]
[1673882172602,53.13,22.657,22.592,4.13972]
[1673882172789,32.68625513,22.649,22.592,4.13972]
[1673882173000,4.50938776,22.654,22.592,8.59644499]
[1673882173214,33.14,22.648,22.593,31.18053053]
[1673882173424,88.32938569,22.653,22.594,4.13936]
[1673882173637,20.0,22.646,22.594,11.79527745]
[1673882173848,7.77265111,22.644,22.594,4.13936]
[1673882174051,5.71884205,22.643,22.594,4.13936]
[1673882174267,4.53059421,22.641,22.594,4.13936]
[1673882174487,17.0,22.64,22.594,4.13936]
[1673882174701,7.13386807,22.638,22.594,4.13936]
[1673882174912,17.0,22.637,22.594,4.13936]
[1673882175126,5.96096304,22.635,22.594,4.13936]
[1673882175442,6.87599353,22.632,22.594,4.13936]
[1673882175630,20.0,22.631,22.594,4.13936]
[1673882175841,150.30030653,22.63,22.594,4.13936]
[1673882176069,7.14250105,22.628,22.594,4.13936]
[1673882176260,37.0,22.627,22.594,4.13936]
[1673882176470,53.17,22.627,22.594,4.13936]
[1673882176702,20.0,22.626,22.594,4.13936]
[1673882177331,33.18,22.625,22.566,4.31322639]
[1673882177534,33.18,22.625,22.567,4.14431]
[1673882177761,33.17,22.63,22.587,5.64663292]
[1673882177954,33.16,22.636,22.587,9.78727292]
[1673882178161,33.16,22.636,22.588,4.14046]
[1673882178379,20.0,22.637,22.588,4.14046]
[1673882178694,20.0,22.634,22.588,4.14046]
[1673882179227,33.16,22.633,22.58,20.0]
[1673882179439,4.09253,22.632,22.58,20.0]
[1673882179622,20.0,22.631,22.58,20.0]
[1673882179958,4.09253,22.63,22.58,20.0]
[1673882180171,53.17,22.631,22.581,4.14174]
[1673882180389,149.1,22.637,22.581,10.41112709]
[1673882180390,33.17,22.629,22.581,10.41112709]
[1673882180587,33.16,22.636,22.582,20.0]
[1673882180804,33.16,22.636,22.584,7.46185723]
[1673882181008,33.16,22.637,22.585,4.14101]
[1673882181232,33.15,22.645,22.585,4.14101]
[1673882181543,20.0,22.637,22.587,20.0]
[1673882181753,33.16,22.637,22.588,21.14046]
[1673882181980,33.15,22.644,22.59,4.14009]
[1673882182275,33.15,22.645,22.591,24.29095546]
[1673882182492,20.0,22.644,22.592,4.13972]
[1673882182889,162.25,22.643,22.592,4.13972]
[1673882183099,216.76393902,22.643,22.592,4.13972]
[1673882183308,129.1,22.641,22.592,4.13972]
[1673882183532,20.0,22.639,22.592,4.13972]
[1673882183748,169.1,22.639,22.592,4.13972]
[1673882183953,169.1,22.639,22.567,20.0]
[1673882183954,4.32627801,22.636,22.56,27.19228201]
[1673882184161,4.02987432,22.634,22.567,4.14431]
[1673882184372,4.09253,22.633,22.567,4.14431]
[1673882184579,20.0,22.631,22.567,4.14431]
[1673882184782,4.3378408,22.629,22.567,4.14431]
[1673882184992,4.09253,22.628,22.567,4.14431]
[1673882185202,4.09253,22.628,22.561,20.0]
[1673882185203,134.39742229,22.627,22.561,20.0]
[1673882185418,137.47593857,22.625,22.565,27.09089395]
[1673882185627,4.09253,22.623,22.565,27.09089395]
[1673882185838,21.09253,22.623,22.565,27.09089395]
[1673882186150,33.18,22.622,22.565,27.09089395]
[1673882186372,4.09253,22.621,22.565,27.09089395]
[1673882186588,20.0,22.62,22.566,10.3348329]
[1673882186788,182.28,22.62,22.567,4.14431]
[1673882187003,53.18,22.62,22.567,4.14431]
[1673882187950,7.2709241,22.617,22.567,4.14431]
[1673882188273,70.63860569,22.616,22.567,4.14431]
[1673882188479,20.0,22.614,22.567,4.14431]
[1673882188791,129.1,22.612,22.567,4.14431]
[1673882188999,6.19637795,22.611,22.567,4.14431]
[1673882189213,4.23878833,22.609,22.567,4.14431]
[1673882189410,20.0,22.607,22.567,4.14431]
[1673882189614,129.1,22.605,22.567,4.14431]
[1673882189823,129.1,22.603,22.567,4.14431]
[1673882190032,129.1,22.601,22.541,20.0]
[1673882190264,129.1,22.599,22.541,20.0]
[1673882190457,20.0,22.596,22.518,5.39208626]
[1673882190666,20.0,22.596,22.517,20.0]
[1673882190667,25.83058281,22.595,22.517,20.0]
[1673882190883,7.24633764,22.593,22.556,4.14633]
[1673882191093,5.45663689,22.59,22.517,20.0]
[1673882191406,20.0,22.587,22.519,4.15314]
[1673882191619,6.80496782,22.586,22.519,4.15314]
[1673882191825,6.024996,22.583,22.519,4.15314]
[1673882192056,20.0,22.582,22.519,4.15314]
[1673882192246,4.81247459,22.58,22.519,4.15314]
[1673882192446,20.0,22.578,22.519,4.15314]
[1673882192659,6.60240418,22.576,22.519,4.15314]
[1673882192987,5.59897344,22.574,22.519,4.15314]
[1673882193198,5.26153929,22.572,22.519,4.15314]
[1673882193423,20.0,22.57,22.519,4.15314]
[1673882193604,20.0,22.569,22.519,4.15314]
[1673882193815,7.89083951,22.567,22.519,4.15314]
[1673882194030,20.0,22.566,22.519,4.15314]
[1673882194256,26.10362996,22.565,22.495,4.37301271]
[1673882194462,20.0,22.563,22.495,8.53058271]
[1673882194679,24.09253,22.562,22.496,33.61036071]
[1673882194884,4.09253,22.56,22.497,4.89411518]
[1673882195102,4.09253,22.56,22.497,29.45297071]
[1673882195289,4.09253,22.56,22.498,37.39358345]
[1673882195498,4.09253,22.56,22.5,4.76052928]
[1673882195716,4.09253,22.56,22.501,17.0]
[1673882195925,4.09253,22.56,22.501,46.45297071]
[1673882196134,4.09253,22.56,22.502,4.79704053]
[1673882196346,4.09253,22.56,22.503,20.0]
[1673882196558,4.09253,22.56,22.504,26.47471823]
[1673882196980,4.09253,22.56,22.506,6.28922009]
[1673882197205,4.09253,22.56,22.507,20.0]
[1673882197393,4.09253,22.56,22.509,5.65610152]
[1673882197723,4.09253,22.56,22.511,5.08562625]
[1673882197948,4.09253,22.56,22.512,20.0]
[1673882198129,4.09253,22.56,22.513,22.98156118]
[1673882198339,4.09253,22.56,22.516,6.13409827]
[1673882198564,4.09253,22.56,22.518,7.01164245]
[1673882198777,0.00253,22.56,22.519,20.0]
[1673882198975,4.09253,22.559,22.52,166.1]
[1673882199192,4.09253,22.594,22.522,129.1]
[1673882199509,4.09253,22.594,22.525,5.81716507]
[1673882199733,4.09253,22.594,22.528,5.26561836]
[1673882199919,4.09253,22.594,22.529,170.2513]
[1673882200131,4.09253,22.594,22.53,11.76079854]
[1673882200348,4.09253,22.594,22.534,6.65880607]
[1673882200667,4.09253,22.594,22.536,4.47777356]
[1673882200983,33.21,22.604,22.538,4.14964]
[1673882201174,149.1,22.603,22.538,4.14964]
[1673882201384,20.0,22.591,22.538,4.14964]
[1673882201589,20.0,22.59,22.538,4.14964]
[1673882201821,53.23,22.59,22.538,4.14964]
[1673882202022,17.0,22.589,22.538,4.14964]
[1673882202234,25.99231577,22.588,22.538,4.14964]